Workbook

Sheet Productivité
B2: =IF(D2="nuit",TODAY()-1,TODAY()) -> 2018-02-13 | D2: Matin
B3: RDQ 1 : | C3: =IFERROR(VLOOKUP(O3,Feuil1!B:C,2,FALSE),0) -> RAPHAEL | M3: N° : | O3: 1 | T3: RDQ 2 : | W3: =IFERROR(VLOOKUP(AE3,Feuil1!B:C,2,FALSE),0) -> SAMUEL | AD3: N°: | AE3: 2
B4: Chargeurs | C4: N° | D4: Numéros de courses - Nombres de pièces | X4: Rem | Y4: Pièces | Z4: Début | AA4: Fin | AB4: Arrêt | AC4: Heures | AD4: Prod rem | AE4: Prod pièces | AH4: A charger
B5: =IFERROR(VLOOKUP(C5,Feuil1!B:C,2,FALSE),0) -> ENZO | C5: 3 | D5: ft789 | E5: ft456 | F5: ft123 | G5: ft321 | H5: ft654 | I5: ft987 | J5: ft147 | K5: ft258 | L5: ft369 | M5: ft741 | N5: ft852 | O5: ft963 | P5: ft159 | Q5: ft753 | X5: =COUNTA(D5:W5) -> 14 | Y5: =A6 -> 339 | Z5: 06:15:00 | AA5: 14:00:00 | AB5: 00:45:00 | AC5: =IF(Z5>AA5,AA5-Z5+IF(Z5>AA5,1),AA5-Z5)-(AB5) -> 07:00:00 | AD5: =IFERROR(X5/(AC5*24),0) -> 2 | AE5: =IFERROR(Y5/(AC5*24),0) -> 48.42857143 | AF5: =SUM(LEN(D6:W6))-SUM(LEN(SUBSTITUTE(SUBSTITUTE(D6:W6,"",""),"e",""))) -> 0 | AH5: Remorques | AI5: 135
A6: =SUM(IF(ISBLANK(D6:W6),0,SUBSTITUTE(SUBSTITUTE(SUBSTITUTE(SUBSTITUTE(D6:W6,"b",""),"B",""),"e",""),"E","")*1)) -> 339 | D6: 28 | E6: 29 | F6: 28 | G6: 27 | H6: 30 | I6: 31 | J6: 14b | K6: 15b | L6: 24 | M6: 10 | N6: 26 | O6: 28 | P6: 18b | Q6: 31 | AF6: =SUM(LEN(D6:W6))-SUM(LEN(SUBSTITUTE(SUBSTITUTE(D6:W6,"B",""),"b",""))) -> 3 | AH6: Bus | AI6: 34
B7: =IFERROR(VLOOKUP(C7,Feuil1!B:C,2,FALSE),0) -> NICOLAS | C7: 4 | D7: po789 | E7: op456 | F7: op123 | G7: op321 | H7: op654 | I7: op987 | J7: op741 | K7: op852 | L7: op963 | M7: op321 | N7: op654 | O7: op987 | P7: po159 | Q7: po147 | R7: op155 | X7: =COUNTA(D7:W7) -> 15 | Y7: =A8 -> 381 | Z7: 06:15:00 | AA7: 14:00:00 | AB7: 00:45:00 | AC7: =IF(Z7>AA7,AA7-Z7+IF(Z7>AA7,1),AA7-Z7)-(AB7) -> 07:00:00 | AD7: =IFERROR(X7/(AC7*24),0) -> 2.142857143 | AE7: =IFERROR(Y7/(AC7*24),0) -> 54.42857143 | AF7: =SUM(LEN(D8:W8))-SUM(LEN(SUBSTITUTE(SUBSTITUTE(D8:W8,"",""),"e",""))) -> 0
A8: =SUM(IF(ISBLANK(D8:W8),0,SUBSTITUTE(SUBSTITUTE(SUBSTITUTE(SUBSTITUTE(D8:W8,"b",""),"B",""),"e",""),"E","")*1)) -> 381 | D8: 28 | E8: 29 | F8: 30 | G8: 31 | H8: 31 | I8: 10b | J8: 28 | K8: 9b | L8: 14 | M8: 28 | N8: 29 | O8: 31 | P8: 32 | Q8: 25 | R8: 26 | AF8: =SUM(LEN(D8:W8))-SUM(LEN(SUBSTITUTE(SUBSTITUTE(D8:W8,"B",""),"b",""))) -> 2
B9: =IFERROR(VLOOKUP(C9,Feuil1!B:C,2,FALSE),0) -> HUGO | C9: 5 | D9: gj89 | E9: gj456 | F9: gj123 | G9: gj741 | H9: gj852 | I9: gj963 | J9: gj258 | K9: gj147 | L9: gj369 | M9: gj159 | N9: gj753 | O9: gj951 | P9: gj225 | X9: =COUNTA(D9:W9) -> 13 | Y9: =A10 -> 342 | Z9: 06:15:00 | AA9: 14:00:00 | AB9: 01:00:00 | AC9: =IF(Z9>AA9,AA9-Z9+IF(Z9>AA9,1),AA9-Z9)-(AB9) -> 06:45:00 | AD9: =IFERROR(X9/(AC9*24),0) -> 1.925925926 | AE9: =IFERROR(Y9/(AC9*24),0) -> 50.66666667 | AF9: =SUM(LEN(D10:W10))-SUM(LEN(SUBSTITUTE(SUBSTITUTE(D10:W10,"",""),"e",""))) -> 0 | AH9: Chargé
A10: =SUM(IF(ISBLANK(D10:W10),0,SUBSTITUTE(SUBSTITUTE(SUBSTITUTE(SUBSTITUTE(D10:W10,"b",""),"B",""),"e",""),"E","")*1)) -> 342 | D10: 28 | E10: 29 | F10: 27 | G10: 30 | H10: 32 | I10: 31 | J10: 14b | K10: 17b | L10: 20b | M10: 28 | N10: 29 | O10: 30 | P10: 27 | AF10: =SUM(LEN(D10:W10))-SUM(LEN(SUBSTITUTE(SUBSTITUTE(D10:W10,"B",""),"b",""))) -> 3 | AH10: Remorques | AI10: =X55-AI11-(AH20*2) -> 57
B11: =IFERROR(VLOOKUP(C11,Feuil1!B:C,2,FALSE),0) -> ANTOINE | C11: 6 | D11: vn789 | E11: bn456 | F11: bn123 | G11: bn321 | H11: nb654 | I11: bn987 | J11: bn222 | K11: bn555 | L11: bn478 | M11: nb367 | N11: bn985 | O11: bn632 | P11: bn258 | Q11: bn244 | X11: =COUNTA(D11:W11) -> 14 | Y11: =A12 -> 366 | Z11: 06:30:00 | AA11: 14:00:00 | AB11: 00:45:00 | AC11: =IF(Z11>AA11,AA11-Z11+IF(Z11>AA11,1),AA11-Z11)-(AB11) -> 06:45:00 | AD11: =IFERROR(X11/(AC11*24),0) -> 2.074074074 | AE11: =IFERROR(Y11/(AC11*24),0) -> 54.22222222 | AF11: =SUM(LEN(D12:W12))-SUM(LEN(SUBSTITUTE(SUBSTITUTE(D12:W12,"",""),"e",""))) -> 0 | AH11: Bus | AI11: =SUM(AF6,AF8,AF10,AF12,AF14,AF16,AF18,AF20,AF22,AF24,AF26,AF28,AF30,AF32,AF34,AF36,AF38,AF40,AF42,AF44,AF46,AF48,AF50,AF52,AF54) -> 14
A12: =SUM(IF(ISBLANK(D12:W12),0,SUBSTITUTE(SUBSTITUTE(SUBSTITUTE(SUBSTITUTE(D12:W12,"b",""),"B",""),"e",""),"E","")*1)) -> 366 | D12: 30 | E12: 31 | F12: 28 | G12: 29 | H12: 10b | I12: 18b | J12: 28 | K12: 29 | L12: 30 | M12: 31 | N12: 15b | O12: 28 | P12: 29 | Q12: 30 | AF12: =SUM(LEN(D12:W12))-SUM(LEN(SUBSTITUTE(SUBSTITUTE(D12:W12,"B",""),"b",""))) -> 3
B13: =IFERROR(VLOOKUP(C13,Feuil1!B:C,2,FALSE),0) -> FREDERIC | C13: 7 | D13: cy789 | E13: cy456 | F13: cy123 | G13: cy741 | H13: cy852 | I13: cy963 | J13: cy654 | K13: cy987 | L13: cy321 | M13: cy258 | N13: cy299 | O13: cy466 | P13: cy311 | Q13: cy977 | R13: vy624 | X13: =COUNTA(D13:W13) -> 15 | Y13: =A14 -> 373 | Z13: 06:15:00 | AA13: 14:00:00 | AB13: 00:45:00 | AC13: =IF(Z13>AA13,AA13-Z13+IF(Z13>AA13,1),AA13-Z13)-(AB13) -> 07:00:00 | AD13: =IFERROR(X13/(AC13*24),0) -> 2.142857143 | AE13: =IFERROR(Y13/(AC13*24),0) -> 53.28571429 | AF13: =SUM(LEN(D14:W14))-SUM(LEN(SUBSTITUTE(SUBSTITUTE(D14:W14,"",""),"e",""))) -> 0
A14: =SUM(IF(ISBLANK(D14:W14),0,SUBSTITUTE(SUBSTITUTE(SUBSTITUTE(SUBSTITUTE(D14:W14,"b",""),"B",""),"e",""),"E","")*1)) -> 373 | D14: 28 | E14: 29 | F14: 29 | G14: 29 | H14: 28 | I14: 14b | J14: 17b | K14: 20b | L14: 28 | M14: 30 | N14: 28 | O14: 29 | P14: 27 | Q14: 14 | R14: 23 | AF14: =SUM(LEN(D14:W14))-SUM(LEN(SUBSTITUTE(SUBSTITUTE(D14:W14,"B",""),"b",""))) -> 3 | AH14: Reste
B15: =IFERROR(VLOOKUP(C15,Feuil1!B:C,2,FALSE),0) -> 0 | X15: =COUNTA(D15:W15) -> 0 | Y15: =A16 -> 0 | AC15: =IF(Z15>AA15,AA15-Z15+IF(Z15>AA15,1),AA15-Z15)-(AB15) -> 00:00:00 | AD15: =IFERROR(X15/(AC15*24),0) -> 0 | AE15: =IFERROR(Y15/(AC15*24),0) -> 0 | AF15: =SUM(LEN(D16:W16))-SUM(LEN(SUBSTITUTE(SUBSTITUTE(D16:W16,"",""),"e",""))) -> 0 | AH15: Remorques | AI15: =AI5-AI10 -> 78
A16: =SUM(IF(ISBLANK(D16:W16),0,SUBSTITUTE(SUBSTITUTE(SUBSTITUTE(SUBSTITUTE(D16:W16,"b",""),"B",""),"e",""),"E","")*1)) -> 0 | AF16: =SUM(LEN(D16:W16))-SUM(LEN(SUBSTITUTE(SUBSTITUTE(D16:W16,"B",""),"b",""))) -> 0 | AH16: Bus | AI16: =AI6-AI11 -> 20
B17: =IFERROR(VLOOKUP(C17,Feuil1!B:C,2,FALSE),0) -> 0 | X17: =COUNTA(D17:W17) -> 0 | Y17: =A18 -> 0 | AC17: =IF(Z17>AA17,AA17-Z17+IF(Z17>AA17,1),AA17-Z17)-(AB17) -> 00:00:00 | AD17: =IFERROR(X17/(AC17*24),0) -> 0 | AE17: =IFERROR(Y17/(AC17*24),0) -> 0 | AF17: =SUM(LEN(D18:W18))-SUM(LEN(SUBSTITUTE(SUBSTITUTE(D18:W18,"",""),"e",""))) -> 0
A18: =SUM(IF(ISBLANK(D18:W18),0,SUBSTITUTE(SUBSTITUTE(SUBSTITUTE(SUBSTITUTE(D18:W18,"b",""),"B",""),"e",""),"E","")*1)) -> 0 | AF18: =SUM(LEN(D18:W18))-SUM(LEN(SUBSTITUTE(SUBSTITUTE(D18:W18,"B",""),"b",""))) -> 0
B19: =IFERROR(VLOOKUP(C19,Feuil1!B:C,2,FALSE),0) -> 0 | X19: =COUNTA(D19:W19) -> 0 | Y19: =A20 -> 0 | AC19: =IF(Z19>AA19,AA19-Z19+IF(Z19>AA19,1),AA19-Z19)-(AB19) -> 00:00:00 | AD19: =IFERROR(X19/(AC19*24),0) -> 0 | AE19: =IFERROR(Y19/(AC19*24),0) -> 0 | AF19: =SUM(LEN(D20:W20))-SUM(LEN(SUBSTITUTE(SUBSTITUTE(D20:W20,"",""),"e",""))) -> 0 | AH19: Rechargées
A20: =SUM(IF(ISBLANK(D20:W20),0,SUBSTITUTE(SUBSTITUTE(SUBSTITUTE(SUBSTITUTE(D20:W20,"b",""),"B",""),"e",""),"E","")*1)) -> 0 | AF20: =SUM(LEN(D20:W20))-SUM(LEN(SUBSTITUTE(SUBSTITUTE(D20:W20,"B",""),"b",""))) -> 0 | AH20: =SUM(AF5,AF7,AF9,AF11,AF13,AF15,AF17,AF19,AF21,AF23,AF25,AF27,AF29,AF31,AF33,AF35,AF37,AF39,AF41,AF43,AF45,AF47,AF49,AF51,AF53) -> 0
B21: =IFERROR(VLOOKUP(C21,Feuil1!B:C,2,FALSE),0) -> 0 | X21: =COUNTA(D21:W21) -> 0 | Y21: =A22 -> 0 | AC21: =IF(Z21>AA21,AA21-Z21+IF(Z21>AA21,1),AA21-Z21)-(AB21) -> 00:00:00 | AD21: =IFERROR(X21/(AC21*24),0) -> 0 | AE21: =IFERROR(Y21/(AC21*24),0) -> 0 | AF21: =SUM(LEN(D22:W22))-SUM(LEN(SUBSTITUTE(SUBSTITUTE(D22:W22,"",""),"e",""))) -> 0
A22: =SUM(IF(ISBLANK(D22:W22),0,SUBSTITUTE(SUBSTITUTE(SUBSTITUTE(SUBSTITUTE(D22:W22,"b",""),"B",""),"e",""),"E","")*1)) -> 0 | AF22: =SUM(LEN(D22:W22))-SUM(LEN(SUBSTITUTE(SUBSTITUTE(D22:W22,"B",""),"b",""))) -> 0
B23: =IFERROR(VLOOKUP(C23,Feuil1!B:C,2,FALSE),0) -> 0 | X23: =COUNTA(D23:W23) -> 0 | Y23: =A24 -> 0 | AC23: =IF(Z23>AA23,AA23-Z23+IF(Z23>AA23,1),AA23-Z23)-(AB23) -> 00:00:00 | AD23: =IFERROR(X23/(AC23*24),0) -> 0 | AE23: =IFERROR(Y23/(AC23*24),0) -> 0 | AF23: =SUM(LEN(D24:W24))-SUM(LEN(SUBSTITUTE(SUBSTITUTE(D24:W24,"",""),"e",""))) -> 0
A24: =SUM(IF(ISBLANK(D24:W24),0,SUBSTITUTE(SUBSTITUTE(SUBSTITUTE(SUBSTITUTE(D24:W24,"b",""),"B",""),"e",""),"E","")*1)) -> 0 | AF24: =SUM(LEN(D24:W24))-SUM(LEN(SUBSTITUTE(SUBSTITUTE(D24:W24,"B",""),"b",""))) -> 0 | AG24: Commentaires
B25: =IFERROR(VLOOKUP(C25,Feuil1!B:C,2,FALSE),0) -> 0 | X25: =COUNTA(D25:W25) -> 0 | Y25: =A26 -> 0 | AC25: =IF(Z25>AA25,AA25-Z25+IF(Z25>AA25,1),AA25-Z25)-(AB25) -> 00:00:00 | AD25: =IFERROR(X25/(AC25*24),0) -> 0 | AE25: =IFERROR(Y25/(AC25*24),0) -> 0 | AF25: =SUM(LEN(D26:W26))-SUM(LEN(SUBSTITUTE(SUBSTITUTE(D26:W26,"",""),"e",""))) -> 0
A26: =SUM(IF(ISBLANK(D26:W26),0,SUBSTITUTE(SUBSTITUTE(SUBSTITUTE(SUBSTITUTE(D26:W26,"b",""),"B",""),"e",""),"E","")*1)) -> 0 | AF26: =SUM(LEN(D26:W26))-SUM(LEN(SUBSTITUTE(SUBSTITUTE(D26:W26,"B",""),"b",""))) -> 0
B27: =IFERROR(VLOOKUP(C27,Feuil1!B:C,2,FALSE),0) -> 0 | X27: =COUNTA(D27:W27) -> 0 | Y27: =A28 -> 0 | AC27: =IF(Z27>AA27,AA27-Z27+IF(Z27>AA27,1),AA27-Z27)-(AB27) -> 00:00:00 | AD27: =IFERROR(X27/(AC27*24),0) -> 0 | AE27: =IFERROR(Y27/(AC27*24),0) -> 0 | AF27: =SUM(LEN(D28:W28))-SUM(LEN(SUBSTITUTE(SUBSTITUTE(D28:W28,"",""),"e",""))) -> 0
A28: =SUM(IF(ISBLANK(D28:W28),0,SUBSTITUTE(SUBSTITUTE(SUBSTITUTE(SUBSTITUTE(D28:W28,"b",""),"B",""),"e",""),"E","")*1)) -> 0 | AF28: =SUM(LEN(D28:W28))-SUM(LEN(SUBSTITUTE(SUBSTITUTE(D28:W28,"B",""),"b",""))) -> 0
B29: =IFERROR(VLOOKUP(C29,Feuil1!B:C,2,FALSE),0) -> 0 | X29: =COUNTA(D29:W29) -> 0 | Y29: =A30 -> 0 | AC29: =IF(Z29>AA29,AA29-Z29+IF(Z29>AA29,1),AA29-Z29)-(AB29) -> 00:00:00 | AD29: =IFERROR(X29/(AC29*24),0) -> 0 | AE29: =IFERROR(Y29/(AC29*24),0) -> 0 | AF29: =SUM(LEN(D30:W30))-SUM(LEN(SUBSTITUTE(SUBSTITUTE(D30:W30,"",""),"e",""))) -> 0
A30: =SUM(IF(ISBLANK(D30:W30),0,SUBSTITUTE(SUBSTITUTE(SUBSTITUTE(SUBSTITUTE(D30:W30,"b",""),"B",""),"e",""),"E","")*1)) -> 0 | AF30: =SUM(LEN(D30:W30))-SUM(LEN(SUBSTITUTE(SUBSTITUTE(D30:W30,"B",""),"b",""))) -> 0
B31: =IFERROR(VLOOKUP(C31,Feuil1!B:C,2,FALSE),0) -> 0 | X31: =COUNTA(D31:W31) -> 0 | Y31: =A32 -> 0 | AC31: =IF(Z31>AA31,AA31-Z31+IF(Z31>AA31,1),AA31-Z31)-(AB31) -> 00:00:00 | AD31: =IFERROR(X31/(AC31*24),0) -> 0 | AE31: =IFERROR(Y31/(AC31*24),0) -> 0 | AF31: =SUM(LEN(D32:W32))-SUM(LEN(SUBSTITUTE(SUBSTITUTE(D32:W32,"",""),"e",""))) -> 0
A32: =SUM(IF(ISBLANK(D32:W32),0,SUBSTITUTE(SUBSTITUTE(SUBSTITUTE(SUBSTITUTE(D32:W32,"b",""),"B",""),"e",""),"E","")*1)) -> 0 | AF32: =SUM(LEN(D32:W32))-SUM(LEN(SUBSTITUTE(SUBSTITUTE(D32:W32,"B",""),"b",""))) -> 0
B33: =IFERROR(VLOOKUP(C33,Feuil1!B:C,2,FALSE),0) -> 0 | X33: =COUNTA(D33:W33) -> 0 | Y33: =A34 -> 0 | AC33: =IF(Z33>AA33,AA33-Z33+IF(Z33>AA33,1),AA33-Z33)-(AB33) -> 00:00:00 | AD33: =IFERROR(X33/(AC33*24),0) -> 0 | AE33: =IFERROR(Y33/(AC33*24),0) -> 0 | AF33: =SUM(LEN(D34:W34))-SUM(LEN(SUBSTITUTE(SUBSTITUTE(D34:W34,"",""),"e",""))) -> 0
A34: =SUM(IF(ISBLANK(D34:W34),0,SUBSTITUTE(SUBSTITUTE(SUBSTITUTE(SUBSTITUTE(D34:W34,"b",""),"B",""),"e",""),"E","")*1)) -> 0 | AF34: =SUM(LEN(D34:W34))-SUM(LEN(SUBSTITUTE(SUBSTITUTE(D34:W34,"B",""),"b",""))) -> 0
B35: =IFERROR(VLOOKUP(C35,Feuil1!B:C,2,FALSE),0) -> 0 | X35: =COUNTA(D35:W35) -> 0 | Y35: =A36 -> 0 | AC35: =IF(Z35>AA35,AA35-Z35+IF(Z35>AA35,1),AA35-Z35)-(AB35) -> 00:00:00 | AD35: =IFERROR(X35/(AC35*24),0) -> 0 | AE35: =IFERROR(Y35/(AC35*24),0) -> 0 | AF35: =SUM(LEN(D36:W36))-SUM(LEN(SUBSTITUTE(SUBSTITUTE(D36:W36,"",""),"e",""))) -> 0
A36: =SUM(IF(ISBLANK(D36:W36),0,SUBSTITUTE(SUBSTITUTE(SUBSTITUTE(SUBSTITUTE(D36:W36,"b",""),"B",""),"e",""),"E","")*1)) -> 0 | AF36: =SUM(LEN(D36:W36))-SUM(LEN(SUBSTITUTE(SUBSTITUTE(D36:W36,"B",""),"b",""))) -> 0
B37: =IFERROR(VLOOKUP(C37,Feuil1!B:C,2,FALSE),0) -> 0 | X37: =COUNTA(D37:W37) -> 0 | Y37: =A38 -> 0 | AC37: =IF(Z37>AA37,AA37-Z37+IF(Z37>AA37,1),AA37-Z37)-(AB37) -> 00:00:00 | AD37: =IFERROR(X37/(AC37*24),0) -> 0 | AE37: =IFERROR(Y37/(AC37*24),0) -> 0 | AF37: =SUM(LEN(D38:W38))-SUM(LEN(SUBSTITUTE(SUBSTITUTE(D38:W38,"",""),"e",""))) -> 0
A38: =SUM(IF(ISBLANK(D38:W38),0,SUBSTITUTE(SUBSTITUTE(SUBSTITUTE(SUBSTITUTE(D38:W38,"b",""),"B",""),"e",""),"E","")*1)) -> 0 | AF38: =SUM(LEN(D38:W38))-SUM(LEN(SUBSTITUTE(SUBSTITUTE(D38:W38,"B",""),"b",""))) -> 0
B39: =IFERROR(VLOOKUP(C39,Feuil1!B:C,2,FALSE),0) -> 0 | X39: =COUNTA(D39:W39) -> 0 | Y39: =A40 -> 0 | AC39: =IF(Z39>AA39,AA39-Z39+IF(Z39>AA39,1),AA39-Z39)-(AB39) -> 00:00:00 | AD39: =IFERROR(X39/(AC39*24),0) -> 0 | AE39: =IFERROR(Y39/(AC39*24),0) -> 0 | AF39: =SUM(LEN(D40:W40))-SUM(LEN(SUBSTITUTE(SUBSTITUTE(D40:W40,"",""),"e",""))) -> 0
A40: =SUM(IF(ISBLANK(D40:W40),0,SUBSTITUTE(SUBSTITUTE(SUBSTITUTE(SUBSTITUTE(D40:W40,"b",""),"B",""),"e",""),"E","")*1)) -> 0 | AF40: =SUM(LEN(D40:W40))-SUM(LEN(SUBSTITUTE(SUBSTITUTE(D40:W40,"B",""),"b",""))) -> 0
B41: =IFERROR(VLOOKUP(C41,Feuil1!B:C,2,FALSE),0) -> 0 | X41: =COUNTA(D41:W42) -> 0 | Y41: =A42 -> 0 | AC41: =IF(Z41>AA41,AA41-Z41+IF(Z41>AA41,1),AA41-Z41)-(AB41) -> 00:00:00 | AD41: =IFERROR(X41/(AC41*24),0) -> 0 | AE41: =IFERROR(Y41/(AC41*24),0) -> 0 | AF41: =SUM(LEN(D42:W42))-SUM(LEN(SUBSTITUTE(SUBSTITUTE(D42:W42,"",""),"e",""))) -> 0
A42: =SUM(IF(ISBLANK(D42:W42),0,SUBSTITUTE(SUBSTITUTE(SUBSTITUTE(SUBSTITUTE(D42:W42,"b",""),"B",""),"e",""),"E","")*1)) -> 0 | AF42: =SUM(LEN(D42:W42))-SUM(LEN(SUBSTITUTE(SUBSTITUTE(D42:W42,"B",""),"b",""))) -> 0
B43: =IFERROR(VLOOKUP(C43,Feuil1!B:C,2,FALSE),0) -> 0 | X43: =COUNTA(D43:W44) -> 0 | Y43: =A44 -> 0 | AC43: =IF(Z43>AA43,AA43-Z43+IF(Z43>AA43,1),AA43-Z43)-(AB43) -> 00:00:00 | AD43: =IFERROR(X43/(AC43*24),0) -> 0 | AE43: =IFERROR(Y43/(AC43*24),0) -> 0 | AF43: =SUM(LEN(D44:W44))-SUM(LEN(SUBSTITUTE(SUBSTITUTE(D44:W44,"",""),"e",""))) -> 0
A44: =SUM(IF(ISBLANK(D44:W44),0,SUBSTITUTE(SUBSTITUTE(SUBSTITUTE(SUBSTITUTE(D44:W44,"b",""),"B",""),"e",""),"E","")*1)) -> 0 | AF44: =SUM(LEN(D44:W44))-SUM(LEN(SUBSTITUTE(SUBSTITUTE(D44:W44,"B",""),"b",""))) -> 0
B45: =IFERROR(VLOOKUP(C45,Feuil1!B:C,2,FALSE),0) -> 0 | X45: =COUNTA(D45:W46) -> 0 | Y45: =A46 -> 0 | AC45: =IF(Z45>AA45,AA45-Z45+IF(Z45>AA45,1),AA45-Z45)-(AB45) -> 00:00:00 | AD45: =IFERROR(X45/(AC45*24),0) -> 0 | AE45: =IFERROR(Y45/(AC45*24),0) -> 0 | AF45: =SUM(LEN(D46:W46))-SUM(LEN(SUBSTITUTE(SUBSTITUTE(D46:W46,"",""),"e",""))) -> 0
A46: =SUM(IF(ISBLANK(D46:W46),0,SUBSTITUTE(SUBSTITUTE(SUBSTITUTE(SUBSTITUTE(D46:W46,"b",""),"B",""),"e",""),"E","")*1)) -> 0 | AF46: =SUM(LEN(D46:W46))-SUM(LEN(SUBSTITUTE(SUBSTITUTE(D46:W46,"B",""),"b",""))) -> 0
B47: =IFERROR(VLOOKUP(C47,Feuil1!B:C,2,FALSE),0) -> 0 | X47: =COUNTA(D47:W48) -> 0 | Y47: =A48 -> 0 | AC47: =IF(Z47>AA47,AA47-Z47+IF(Z47>AA47,1),AA47-Z47)-(AB47) -> 00:00:00 | AD47: =IFERROR(X47/(AC47*24),0) -> 0 | AE47: =IFERROR(Y47/(AC47*24),0) -> 0 | AF47: =SUM(LEN(D48:W48))-SUM(LEN(SUBSTITUTE(SUBSTITUTE(D48:W48,"",""),"e",""))) -> 0
A48: =SUM(IF(ISBLANK(D48:W48),0,SUBSTITUTE(SUBSTITUTE(SUBSTITUTE(SUBSTITUTE(D48:W48,"b",""),"B",""),"e",""),"E","")*1)) -> 0 | AF48: =SUM(LEN(D48:W48))-SUM(LEN(SUBSTITUTE(SUBSTITUTE(D48:W48,"B",""),"b",""))) -> 0
B49: =IFERROR(VLOOKUP(C49,Feuil1!B:C,2,FALSE),0) -> 0 | X49: =COUNTA(D49:W50) -> 0 | Y49: =A50 -> 0 | AC49: =IF(Z49>AA49,AA49-Z49+IF(Z49>AA49,1),AA49-Z49)-(AB49) -> 00:00:00 | AD49: =IFERROR(X49/(AC49*24),0) -> 0 | AE49: =IFERROR(Y49/(AC49*24),0) -> 0 | AF49: =SUM(LEN(D50:W50))-SUM(LEN(SUBSTITUTE(SUBSTITUTE(D50:W50,"",""),"e",""))) -> 0
A50: =SUM(IF(ISBLANK(D50:W50),0,SUBSTITUTE(SUBSTITUTE(SUBSTITUTE(SUBSTITUTE(D50:W50,"b",""),"B",""),"e",""),"E","")*1)) -> 0 | AF50: =SUM(LEN(D50:W50))-SUM(LEN(SUBSTITUTE(SUBSTITUTE(D50:W50,"B",""),"b",""))) -> 0
B51: =IFERROR(VLOOKUP(C51,Feuil1!B:C,2,FALSE),0) -> 0 | X51: =COUNTA(D51:W52) -> 0 | Y51: =A52 -> 0 | AC51: =IF(Z51>AA51,AA51-Z51+IF(Z51>AA51,1),AA51-Z51)-(AB51) -> 00:00:00 | AD51: =IFERROR(X51/(AC51*24),0) -> 0 | AE51: =IFERROR(Y51/(AC51*24),0) -> 0 | AF51: =SUM(LEN(D52:W52))-SUM(LEN(SUBSTITUTE(SUBSTITUTE(D52:W52,"",""),"e",""))) -> 0
A52: =SUM(IF(ISBLANK(D52:W52),0,SUBSTITUTE(SUBSTITUTE(SUBSTITUTE(SUBSTITUTE(D52:W52,"b",""),"B",""),"e",""),"E","")*1)) -> 0 | AF52: =SUM(LEN(D52:W52))-SUM(LEN(SUBSTITUTE(SUBSTITUTE(D52:W52,"B",""),"b",""))) -> 0
B53: =IFERROR(VLOOKUP(C53,Feuil1!B:C,2,FALSE),0) -> 0 | X53: =COUNTA(D53:W54) -> 0 | Y53: =A54 -> 0 | AC53: =IF(Z53>AA53,AA53-Z53+IF(Z53>AA53,1),AA53-Z53)-(AB53) -> 00:00:00 | AD53: =IFERROR(X53/(AC53*24),0) -> 0 | AE53: =IFERROR(Y53/(AC53*24),0) -> 0 | AF53: =SUM(LEN(D54:W54))-SUM(LEN(SUBSTITUTE(SUBSTITUTE(D54:W54,"",""),"e",""))) -> 0
A54: =SUM(IF(ISBLANK(D54:W54),0,SUBSTITUTE(SUBSTITUTE(SUBSTITUTE(SUBSTITUTE(D54:W54,"b",""),"B",""),"e",""),"E","")*1)) -> 0 | AF54: =SUM(LEN(D54:W54))-SUM(LEN(SUBSTITUTE(SUBSTITUTE(D54:W54,"B",""),"b",""))) -> 0
S55: Totaux : | X55: =SUM(X5:X54) -> 71 | Y55: =SUM(Y5:Y54) -> 1801 | AC55: =SUMIF(AC5:AC54,">0") -> 1.4375 | AD55: =IFERROR(X55/(AC55*24),0) -> 2.057971014 | AE55: =IFERROR(Y55/(AC55*24),0) -> 52.20289855

Sheet Feuil1
B2: Liste du personnel
B3: N°Pers. | C3: Noms
B4: 1 | C4: RAPHAEL
B5: 2 | C5: SAMUEL
B6: 3 | C6: ENZO
B7: 4 | C7: NICOLAS
B8: 5 | C8: HUGO
B9: 6 | C9: ANTOINE
B10: 7 | C10: FREDERIC
B11: 8 | C11: THEO
B12: 9 | C12: JEREMIE
B13: 10 | C13: ADOLPHE
B14: 11 | C14: MATHIS
B15: 12 | C15: ALEXANDRE
B16: 13 | C16: BENJAMIN
B17: 14 | C17: LUCAS
B18: 15 | C18: SEBASTIEN
B19: 16 | C19: THOMAS
B20: 17 | C20: MARTIAL
B21: 18 | C21: MOHAMED
B22: 19 | C22: JEAN
B23: 20 | C23: SAYAN
B24: 21 | C24: ROBIN
B25: 22 | C25: FREDERIQUE
B26: 23 | C26: GAETAN
B27: 24 | C27: ETIENNE
B28: 25 | C28: SACHA
B29: 26 | C29: ANTHONY
B30: 27 | C30: ENAUT
B31: 28 | C31: MAXIME
B32: 29 | C32: SOHAN
B33: 30 | C33: NATHAN
B34: 31 | C34: KEVIN
B35: 32 | C35: GORKA
B36: 33 | C36: JULIEN
B37: 34 | C37: MARINE
B38: 35 | C38: STEPHANE
B39: 36 | C39: FRANCO
B40: 37 | C40: YASSINE
B41: 38 | C41: GABRIEL
B42: 39 | C42: HAI
B43: 40 | C43: DAVID
B44: 41 | C44: KEPA
B45: 42 | C45: DYLAN
B46: 43 | C46: NANS
B47: 44 | C47: LEANDRE
B48: 45 | C48: NOEL
B49: 46 | C49: GUILLAUME
B50: 47 | C50: LOUIS
B51: 48 | C51: MICHEL
B52: 49 | C52: YANIS
B53: 50 | C53: JULES
B54: 51 | C54: SARAH
B55: 52 | C55: CAMILLE
B56: 53 | C56: NAYA
B57: 54 | C57: MANON
B58: 55 | C58: MAXIME
B59: 56 | C59: YSEE
B60: 57 | C60: INES
B61: 58 | C61: GAELLE
B62: 59 | C62: CLARA
B63: 60 | C63: MARGAUX
B64: 61 | C64: EMMA
B65: 62 | C65: MELENA
B66: 63 | C66: RIHANA
B67: 64 | C67: MAITENA
B68: 65 | C68: LAURA
B69: 66 | C69: MYRIAM
B70: 67 | C70: SALOME
B71: 68 | C71: CHLOE
B72: 69 | C72: CLAIRE
B73: 70 | C73: ANAYA
B74: 71 | C74: LAYANA
B75: 72 | C75: LINA
B76: 73 | C76: LISE
B77: 74 | C77: NELIA
B78: 75 | C78: CYPRINE
B79: 76 | C79: AMBRINE
B80: 77 | C80: ADELE
B81: 78 | C81: JADE
B82: 79 | C82: HAKIMA
B83: 80 | C83: AGATHE
B84: 81 | C84: AYANA
B85: 82 | C85: UHAINA
B86: 83 | C86: ALICE
B87: 84 | C87: JODIE
B88: 85 | C88: KENZA
B89: 86 | C89: CYRILLE
B90: 87 | C90: LEA
B91: 88 | C91: STELLA
B92: 89 | C92: DOMITILLE
B93: 90 | C93: SOHANE
B94: 91 | C94: PAULE
B95: 92 | C95: ENA
B96: 93 | C96: LAILA
B97: 94 | C97: INTZA
B98: 95 | C98: ALISON
B99: 96 | C99: OCEANE
B100: 97 | C100: HAIZE
B101: 98 | C101: MAGGY
B102: 99 | C102: MARIE
B103: 100 | C103: NATHALIE
